bitfinex-derivatives/quotes_ETHF0:USTF0_20241024
["timestamp","ask_amount","ask_price","bid_price","bid_amount"]
[1729813539965,0.73206768,2535.6,2535.5,0.39456]
[1729813540168,2.01286089,2535.6,2535.5,0.39456]
[1729813541960,2.01286089,2535.6,2535.5,0.96225364]
[1729813542471,2.01286089,2535.6,2535.5,0.39456]
[1729813542875,5.22066089,2535.6,2535.5,0.43889743]
[1729813544070,5.22066089,2535.6,2535.5,0.39456]
[1729813546070,5.22066089,2535.6,2535.5,1.57801127]
[1729813546275,5.22066089,2535.6,2535.5,4.46074954]
[1729813546477,2.01286089,2535.6,2535.5,4.46074954]
[1729813546671,5.22066089,2535.6,2535.5,4.13988458]
[1729813546883,5.22066089,2535.6,2535.5,3.84874788]
[1729813547779,5.22066089,2535.6,2535.5,3.23298077]
[1729813548779,5.22066089,2535.6,2535.5,0.39456]
[1729813548973,5.22066089,2535.6,2535.5,1.99888977]
[1729813549177,5.22066089,2535.6,2535.5,3.2329896]
[1729813549579,5.22066089,2535.6,2535.5,3.59816181]
[1729813549780,5.22066089,2535.6,2535.5,4.21521221]
[1729813549981,2.01286089,2535.6,2535.5,4.41266819]
[1729813550381,2.01286089,2535.6,2535.5,3.84498226]
[1729813550680,5.22066089,2535.6,2535.5,3.84498226]
[1729813551485,5.22066089,2535.6,2535.5,3.45042226]
[1729813551778,6.8960141,2535.6,2535.5,3.45042226]
[1729813551984,6.8960141,2535.6,2535.5,3.84499226]
[1729813552286,6.8960141,2535.6,2535.5,2.8577124]
[1729813552583,6.8960141,2535.6,2535.5,1.00656266]
[1729813552781,5.61522089,2535.6,2535.5,1.00656266]
[1729813552974,6.8960141,2535.6,2535.5,0.61199266]
[1729813554287,6.8960141,2535.6,2535.5,0.32086855]
[1729813554582,0.39457,2535.5,2535.4,0.43887946]
[1729813554785,2.79363089,2535.5,2535.4,0.39459]
[1729813555387,2.39906089,2535.5,2535.3,0.61517915]
[1729813555577,1.58676089,2535.4,2535.3,1.00976915]
[1729813557184,1.58676089,2535.4,2535.3,0.39459]
[1729813557878,4.79456089,2535.4,2535.3,0.39459]
[1729813558078,4.79456089,2535.4,2535.3,1.99906719]
[1729813559281,4.79456089,2535.4,2535.3,0.39459]
[1729813561377,4.79456089,2535.4,2535.3,3.23322122]
[1729813561990,4.79456089,2535.4,2535.3,1.62877749]
[1729813562186,4.79456089,2535.4,2535.3,0.39459]
[1729813563199,4.79456089,2535.4,2535.3,0.64142583]
[1729813563589,4.79456089,2535.4,2535.3,0.39459]
[1729813564394,4.79456089,2535.4,2535.3,3.23319691]
[1729813564692,4.79456089,2535.4,2535.3,3.4800293]
[1729813565104,4.79456089,2535.4,2535.3,0.64142239]
[1729813565293,4.79456089,2535.4,2535.3,0.39459]
[1729813569095,4.79456089,2535.4,2535.3,0.96231487]
[1729813569601,4.79456089,2535.4,2535.3,0.83889642]
[1729813569802,4.79456089,2535.4,2535.3,0.59205952]
[1729813570099,4.48859321,2535.4,2535.3,0.39459]
[1729813571402,1.28079321,2535.4,2535.3,0.39459]
[1729813572791,1.28079321,2535.4,2535.3,2.6161217]
[1729813572997,1.28079321,2535.4,2535.3,3.06042941]
[1729813573197,1.28079321,2535.4,2535.3,3.80094036]
[1729813574206,1.28079321,2535.4,2535.3,0.39459]
[1729813574506,1.28079321,2535.4,2535.3,3.23320474]
[1729813575199,1.98135089,2535.4,2535.3,3.80092768]
[1729813575400,1.98135089,2535.4,2535.3,3.80093768]
[1729813575607,1.98135089,2535.4,2535.3,0.64143606]
[1729813575807,1.98135089,2535.4,2535.3,0.3946]
[1729813577507,1.98135089,2535.4,2535.3,3.80097525]
[1729813578104,1.98135089,2535.4,2535.3,1.2585359]
[1729813578700,1.98135089,2535.4,2535.3,1.01169682]
[1729813579299,1.98135089,2535.4,2535.3,0.61709682]
[1729813581205,5.18915089,2535.4,2535.3,0.61709682]
[1729813584611,5.18915089,2535.4,2535.3,1.18484363]
[1729813585115,5.18915089,2535.4,2535.3,0.61709682]
[1729813585504,3.51376768,2535.4,2535.3,0.61709682]
[1729813585704,4.79456089,2535.4,2535.3,1.01169682]
[1729813586505,4.79456089,2535.4,2535.3,2.24592906]
[1729813587613,4.79456089,2535.4,2535.3,3.48012642]
[1729813587917,4.79456089,2535.4,2535.3,3.23325108]
[1729813588104,4.79456089,2535.4,2535.3,1.3819569]
[1729813588412,4.79456089,2535.4,2535.3,0.3946]
[1729813588611,4.79456089,2535.4,2535.3,3.23328008]
[1729813589210,4.79456089,2535.4,2535.3,0.3946]
[1729813591607,4.79456089,2535.4,2535.3,0.96233333]
[1729813592006,1.58676089,2535.4,2535.3,0.96233333]
[1729813592317,1.58676089,2535.4,2535.3,0.3946]
[1729813596017,1.58676089,2535.4,2535.3,3.80102682]
[1729813597012,1.58676089,2535.4,2535.3,3.23328884]
[1729813597924,0.30596768,2535.4,2535.3,3.23328884]
[1729813598114,1.58676089,2535.4,2535.3,3.23328884]
[1729813598810,1.58676089,2535.4,2535.3,0.3946]
[1729813600216,1.58676089,2535.4,2535.3,3.84517258]
[1729813600415,1.98135089,2535.4,2535.3,3.84517258]
[1729813600615,1.58676089,2535.4,2535.3,4.46080551]
[1729813601915,1.58676089,2535.4,2535.3,3.84517258]
[1729813603021,1.58676089,2535.4,2535.3,3.23310792]
[1729813603919,1.58676089,2535.4,2535.3,1.01166694]
[1729813604114,1.28079321,2535.4,2535.3,1.01166694]
[1729813604719,1.28079321,2535.4,2535.3,0.3946]
[1729813604919,1.28079321,2535.4,2535.3,3.23323766]
[1729813605420,1.67538321,2535.4,2535.3,1.62879029]
[1729813605621,1.28079321,2535.4,2535.3,0.3946]
[1729813606009,1.28079321,2535.4,2535.3,1.00664467]
[1729813606624,1.28079321,2535.4,2535.3,0.3946]
[1729813608823,1.28079321,2535.4,2535.3,3.23323824]
[1729813609220,1.58676089,2535.4,2535.3,1.01169527]
[1729813609420,1.58676089,2535.4,2535.3,0.3946]
[1729813610511,1.58676089,2535.4,2535.3,0.64143915]
[1729813610927,1.58676089,2535.4,2535.3,0.96233004]
[1729813611319,1.58676089,2535.4,2535.3,0.51801957]
[1729813615617,1.58676089,2535.4,2535.3,1.13009208]
[1729813616022,1.58676089,2535.4,2535.3,0.80920038]
[1729813616228,1.58676089,2535.4,2535.3,0.51801957]
[1729813618722,1.58676089,2535.4,2535.3,3.96874403]
[1729813619222,1.58676089,2535.4,2535.3,0.68576203]
[1729813620128,1.58676089,2535.4,2535.3,0.51801957]
[1729813622330,1.98135089,2535.4,2535.3,0.51801957]
[1729813622531,1.58676089,2535.4,2535.3,0.51801957]
[1729813622830,1.98135089,2535.4,2535.3,0.51801957]
[1729813623031,1.98135089,2535.4,2535.3,0.3946]
[1729813623531,1.58676089,2535.4,2535.3,0.3946]
[1729813627031,1.98135089,2535.4,2535.3,0.3946]
[1729813627423,1.58676089,2535.4,2535.3,0.3946]
[1729813629429,1.58676089,2535.4,2535.3,1.00666241]
[1729813629627,1.58676089,2535.4,2535.3,0.3946]
[1729813630638,1.58676089,2535.4,2535.3,3.23327]
[1729813632333,1.58676089,2535.4,2535.3,0.3946]
[1729813632936,1.58676089,2535.4,2535.3,1.00666423]
[1729813634334,1.28079321,2535.4,2535.3,2.61113048]
[1729813634539,1.58676089,2535.4,2535.3,3.22823289]
[1729813634836,1.98135089,2535.4,2535.3,1.00666423]
[1729813635034,1.98135089,2535.4,2535.3,0.3946]
[1729813636231,0.39461,2535.3,2535.2,0.39461]
[1729813636434,2.83747089,2535.3,2535.2,0.39461]
[1729813636938,2.83747089,2535.3,2535.2,1.01039107]
[1729813637131,2.44286089,2535.3,2535.2,0.39461]
[1729813637329,2.44286089,2535.3,2535.2,3.89368354]
[1729813638339,2.44286089,2535.3,2535.2,4.41709789]
[1729813638937,2.44286089,2535.3,2535.2,4.04683011]
[1729813639133,2.83746089,2535.3,2535.2,4.04683011]
[1729813639328,2.83746089,2535.3,2535.2,3.84935396]
[1729813640135,2.44286089,2535.3,2535.2,3.84935396]
[1729813641035,2.83746089,2535.3,2535.2,3.84935396]
[1729813642037,2.83746089,2535.3,2535.2,3.23332972]
[1729813642440,2.44286089,2535.3,2535.2,3.23332972]
[1729813642640,2.44286089,2535.3,2535.2,3.80106965]
[1729813644043,2.44286089,2535.3,2535.2,0.96234993]
[1729813644539,2.44286089,2535.3,2535.2,3.4298485]
[1729813644742,2.44286089,2535.3,2535.2,4.17038134]
[1729813644936,2.44286089,2535.3,2535.2,3.84948486]
[1729813645339,2.44286089,2535.3,2535.2,4.17038216]
[1729813645643,2.44286089,2535.3,2535.2,4.41722624]
[1729813646430,2.44286089,2535.3,2535.2,3.9729069]
[1729813646741,2.44286089,2535.3,2535.2,0.39461]
[1729813646942,2.44286089,2535.3,2535.2,3.84963258]
[1729813647644,2.44286089,2535.3,2535.2,2.61621525]
[1729813647842,2.44286089,2535.3,2535.2,0.39461]
[1729813648342,1.58676089,2535.3,2535.2,0.39461]
[1729813648543,1.58676089,2535.3,2535.2,3.84961277]
[1729813648843,1.58676089,2535.3,2535.2,4.27971277]
[1729813649037,1.58676089,2535.3,2535.2,1.44182008]
[1729813649340,1.58676089,2535.3,2535.2,1.39245474]
[1729813651042,1.58676089,2535.3,2535.2,2.99691168]
[1729813651342,1.58676089,2535.3,2535.2,4.23110933]
[1729813652339,1.58676089,2535.3,2535.2,1.39245474]
[1729813652936,1.58676089,2535.3,2535.2,0.82471]
[1729813654245,1.58676089,2535.3,2535.2,1.39243737]
[1729813654944,1.58676089,2535.3,2535.2,3.66335321]
[1729813656242,1.58676089,2535.3,2535.2,0.82471]
[1729813656633,1.58676089,2535.3,2535.2,1.19496788]
[1729813656835,1.58676089,2535.3,2535.2,0.82471]
[1729813657434,1.58676089,2535.3,2535.2,3.66335817]
[1729813657638,1.58676089,2535.3,2535.2,4.23108752]
[1729813657840,1.58676089,2535.3,2535.2,1.39243935]
[1729813660246,1.58676089,2535.3,2535.2,4.23108752]
[1729813660743,1.58676089,2535.3,2535.2,3.91019702]
[1729813660949,1.58676089,2535.3,2535.2,0.82471]
[1729813661148,1.58676089,2535.3,2535.2,2.30574726]
[1729813661449,1.58676089,2535.3,2535.2,3.98425615]
[1729813661748,1.58676089,2535.3,2535.2,2.75005843]
[1729813662141,1.58676089,2535.3,2535.2,6.15644417]
[1729813662846,1.58676089,2535.3,2535.2,3.31778937]
[1729813663349,1.58676089,2535.3,2535.2,2.75005843]
[1729813664441,1.58676089,2535.3,2535.2,3.3177893]
[1729813665345,1.58676089,2535.3,2535.2,1.71333227]
[1729813665545,1.58676089,2535.3,2535.2,1.21965324]
[1729813665743,1.58676089,2535.3,2535.2,1.02218163]
[1729813665946,1.58676089,2535.3,2535.2,0.82471]
[1729813666541,1.58676089,2535.3,2535.2,3.04626563]
[1729813666746,1.58676089,2535.3,2535.2,2.05890757]
[1729813668155,1.58676089,2535.3,2535.2,4.89755685]
[1729813669445,1.58676089,2535.3,2535.2,5.02097626]
[1729813669655,1.58676089,2535.3,2535.2,4.89755685]
[1729813670449,1.58676089,2535.3,2535.2,5.46528605]
[1729813670950,1.58676089,2535.3,2535.2,2.42916574]
[1729813671155,1.58676089,2535.3,2535.2,2.05890757]
[1729813672250,1.58676089,2535.3,2535.2,1.62880757]
[1729813672458,1.98136089,2535.3,2535.2,1.62880757]
[1729813674260,1.58676089,2535.3,2535.2,1.62880757]
[1729813674956,1.58676089,2535.3,2535.2,2.86300905]
[1729813675258,1.58676089,2535.3,2535.2,5.03520364]
[1729813675658,1.58676089,2535.3,2535.2,1.62880757]
[1729813677060,1.58676089,2535.3,2535.2,2.19655204]
[1729813677562,1.58676089,2535.3,2535.2,4.41754651]
[1729813677756,1.58676089,2535.3,2535.2,4.46191812]
[1729813678163,1.58676089,2535.3,2535.2,4.46194768]
[1729813678356,1.58676089,2535.3,2535.2,3.8498316]
[1729813678557,1.58676089,2535.3,2535.2,1.62883713]
[1729813678755,1.58676089,2535.3,2535.2,0.39461]
[1729813680854,1.98136089,2535.3,2535.2,3.84978969]
[1729813681165,1.98136089,2535.3,2535.2,3.86982333]
[1729813681357,1.98136089,2535.3,2535.2,4.06730069]
[1729813681660,1.98136089,2535.3,2535.2,1.59950781]
[1729813681966,1.98136089,2535.3,2535.2,1.0317604]
[1729813682158,1.98136089,2535.3,2535.2,0.04437359]
[1729813682367,0.39463,2535.1,2535.0,0.39464]
[1729813682555,1.98139089,2535.1,2535.0,0.39464]
[1729813682751,0.39467,2534.9,2534.8,0.39467]
[1729813682956,1.58676089,2534.9,2534.8,0.39468]
[1729813683560,2.40563089,2534.9,2534.8,0.39468]
[1729813683962,2.40563089,2534.9,2534.5,0.8454]
[1729813683963,3.2917541,2534.9,2534.5,0.8454]
[1729813684153,0.81888,2534.9,2534.7,0.39469]
[1729813684355,0.30596768,2534.8,2534.7,0.3947]
[1729813685068,2.8675541,2534.8,2534.7,0.3947]
[1729813686664,2.8675541,2534.8,2534.7,2.41426886]
[1729813686866,2.8675541,2534.8,2534.7,4.1419268]
[1729813687060,2.8675541,2534.8,2534.7,4.80355657]
[1729813687362,2.8675541,2534.8,2534.7,8.2101188]
[1729813687558,1.58676089,2534.8,2534.7,8.2101188]
[1729813688065,1.58676089,2534.8,2534.7,5.37080054]
[1729813689468,2.8675541,2534.8,2534.7,5.37080054]
[1729813689661,2.8675541,2534.8,2534.7,1.25384758]
[1729813689867,2.8675541,2534.8,2534.7,1.00695032]
[1729813690061,2.8675541,2534.8,2534.7,0.68598391]
[1729813690360,3.2622341,2534.8,2534.7,0.3947]
[1729813690558,2.8675541,2534.8,2534.7,0.3947]
[1729813690960,2.8675541,2534.8,2534.7,0.9625637]
[1729813691669,2.8675541,2534.8,2534.7,3.18464048]
[1729813691868,2.8675541,2534.8,2534.7,3.80188403]
[1729813692562,2.8675541,2534.8,2534.7,3.48091759]
[1729813692760,2.8675541,2534.8,2534.7,3.23402033]
[1729813693170,0.30596768,2534.8,2534.7,3.23402033]
[1729813693363,2.8675541,2534.8,2534.7,3.23402033]
[1729813693562,3.2622341,2534.8,2534.7,3.23402033]
[1729813693965,2.8675541,2534.8,2534.7,4.8388816]
[1729813694269,2.8675541,2534.8,2534.7,5.40675487]
[1729813694665,2.8675541,2534.8,2534.7,4.78950054]
[1729813694967,2.8675541,2534.8,2534.7,3.8018936]
[1729813695573,3.2622341,2534.8,2534.7,3.8018936]
[1729813695868,2.8675541,2534.8,2534.7,3.8018936]
[1729813696669,2.8675541,2534.8,2534.7,4.83888099]
[1729813697370,2.8675541,2534.8,2534.7,3.23402033]
[1729813699381,2.8675541,2534.8,2534.7,3.35747162]
[1729813699604,2.8675541,2534.8,2534.7,3.55499369]
[1729813699806,2.8675541,2534.8,2534.7,4.5426016]
[1729813700197,1.58676089,2534.8,2534.7,5.15985654]
[1729813700895,1.58676089,2534.8,2534.7,2.32053621]
[1729813701094,1.58676089,2534.8,2534.7,1.99956285]
[1729813701884,1.58676089,2534.8,2534.7,2.32051836]
[1729813703474,1.58676089,2534.8,2534.7,0.71565551]
[1729813703774,1.58676089,2534.8,2534.7,0.3947]
[1729813704176,1.58676089,2534.8,2534.7,0.7156577]
[1729813704569,1.58676089,2534.8,2534.7,2.32045092]
[1729813706069,1.58676089,2534.8,2534.7,3.92524336]
[1729813706976,1.58676089,2534.8,2534.7,2.32045092]
[1729813709474,1.58676089,2534.8,2534.7,3.92524665]
[1729813709976,1.58676089,2534.8,2534.7,2.98705904]
[1729813710279,1.58676089,2534.8,2534.7,1.99949244]
[1729813711282,1.58676089,2534.8,2534.7,0.3947]
[1729813715283,1.58676089,2534.8,2534.7,0.71565941]
[1729813715582,1.58676089,2534.8,2534.7,2.3204565]
[1729813716480,1.58676089,2534.8,2534.7,2.19701057]
[1729813716684,1.58676089,2534.8,2534.7,1.99949709]
[1729813717381,1.58676089,2534.8,2534.7,2.32046076]
[1729813717779,1.58676089,2534.8,2534.7,1.99949709]
[1729813719185,1.58676089,2534.8,2534.7,3.23394662]
[1729813719582,1.58676089,2534.8,2534.7,3.35739257]
[1729813719887,1.58676089,2534.8,2534.7,3.55490609]
[1729813720284,1.58676089,2534.8,2534.7,3.23394662]
[1729813720689,1.58676089,2534.8,2534.7,3.80179688]
[1729813721783,1.58676089,2534.8,2534.7,3.55490546]
[1729813721980,1.58676089,2534.8,2534.7,0.3947]
[1729813723489,1.58676089,2534.8,2534.7,4.46208098]
[1729813724079,1.58676089,2534.8,2534.7,4.29430532]
[1729813724277,1.58676089,2534.8,2534.7,3.84989716]
[1729813724478,1.58676089,2534.8,2534.7,0.3947]
[1729813726883,0.30596768,2534.8,2534.7,0.3947]
[1729813727186,1.28079321,2534.8,2534.7,4.95168353]
[1729813727991,1.28079321,2534.8,2534.7,4.90735451]
[1729813729590,0.4303,2535.0,2534.7,4.51265451]
[1729813729899,0.4303,2535.0,2534.9,0.39467]
[1729813730290,0.73626768,2535.0,2534.9,0.39467]
[1729813731198,2.01706089,2535.0,2534.9,0.39467]
[1729813731396,2.01706089,2535.0,2534.9,1.9978084]
[1729813731795,2.44746089,2535.0,2534.9,2.81252375]
[1729813731996,2.44746089,2535.0,2534.9,4.09630389]
[1729813732196,2.44746089,2535.0,2534.9,3.48068667]
[1729813732697,2.44746089,2535.0,2534.9,0.39467]
[1729813734803,2.44746089,2535.0,2534.9,0.96249443]
[1729813737097,2.44746089,2535.0,2534.9,1.95001518]
[1729813737298,2.44746089,2535.0,2534.9,3.80161657]
[1729813738001,1.58676089,2535.0,2534.9,3.80161657]
[1729813738212,1.58676089,2535.0,2534.9,2.81409582]
[1729813738400,1.58676089,2535.0,2534.9,0.39467]
[1729813739201,1.58676089,2535.0,2534.9,0.96249043]
[1729813739897,1.58676089,2535.0,2534.9,3.80159263]
[1729813740302,3.2078,2535.1,2534.9,8.63251584]
[1729813740601,3.2078,2535.4,2535.0,5.62024321]
[1729813740901,4.48859321,2535.4,2535.3,0.3946]
[1729813741098,3.2078,2535.4,2535.3,0.3946]
[1729813741306,3.2078,2535.4,2535.3,6.45219321]
[1729813741505,1.28079321,2535.6,2535.5,0.39457]
[1729813741701,1.58676089,2535.6,2535.5,0.39457]
[1729813743297,1.58676089,2535.6,2535.5,2.24615839]
[1729813743500,1.58676089,2535.6,2535.5,2.86148609]
[1729813744002,1.58676089,2535.6,2535.5,0.39457]
[1729813746605,1.58676089,2535.6,2535.5,3.23280696]
[1729813749001,1.58676089,2535.6,2535.5,0.39457]
[1729813749204,1.58676089,2535.6,2535.5,0.71541798]
[1729813749910,1.58676089,2535.6,2535.5,2.31966115]
[1729813750600,1.58676089,2535.6,2535.5,4.24476669]
[1729813750900,1.58676089,2535.6,2535.5,5.84908135]
[1729813751105,1.58676089,2535.6,2535.5,5.23203725]
[1729813751410,1.58676089,2535.6,2535.5,5.35544609]
[1729813751613,1.58676089,2535.6,2535.5,6.21932063]
[1729813751906,1.58676089,2535.6,2535.5,7.20660094]
[1729813752103,1.58676089,2535.6,2535.5,7.40406362]
[1729813752298,1.58676089,2535.6,2535.5,8.02111381]
[1729813752506,1.58676089,2535.6,2535.5,9.6254431]
[1729813752697,1.58676089,2535.6,2535.5,10.24249423]
[1729813753404,1.58676089,2535.6,2535.5,10.11908389]
[1729813753607,1.58676089,2535.6,2535.5,10.11908143]
[1729813753808,1.58676089,2535.6,2535.5,10.24249023]
[1729813754007,1.58676089,2535.6,2535.5,9.92162735]
[1729813755310,1.58676089,2535.6,2535.5,10.24249031]
[1729813755510,1.58676089,2535.6,2535.5,5.3062033]
[1729813755708,1.58676089,2535.6,2535.5,4.12147658]
[1729813756110,1.58676089,2535.6,2535.5,1.33248409]
[1729813756411,1.58676089,2535.6,2535.5,1.13502996]
[1729813756608,1.58676089,2535.6,2535.5,1.01162113]
[1729813757800,0.30596768,2535.6,2535.5,1.01162113]
[1729813758009,1.58676089,2535.6,2535.5,1.01162113]
[1729813758903,1.58676089,2535.6,2535.5,0.39457]
[1729813759100,0.30596768,2535.6,2535.5,0.39457]
[1729813759300,3.6391,2536.2,2535.5,8.82716321]
[1729813759508,0.30596768,2536.0,2535.7,1.28079321]
[1729813759712,0.30596768,2536.0,2535.7,1.67533321]
[1729813759713,1.28079321,2535.8,2535.7,1.67533321]
[1729813760115,1.28079321,2535.8,2535.7,5.61933321]
[1729813760314,1.28079321,2535.8,2535.7,8.77803488]
[1729813760514,1.28079321,2535.8,2535.7,7.17641666]
[1729813760726,1.28079321,2535.8,2535.7,4.33854]
[1729813761125,1.28079321,2535.8,2535.7,4.76194]
[1729813762102,1.28079321,2535.8,2535.7,7.96974]
[1729813762813,1.28079321,2535.8,2535.7,8.41395413]
[1729813763009,1.28079321,2535.8,2535.7,8.53734694]
[1729813763311,1.58676089,2535.8,2535.7,4.59334694]
[1729813763910,1.58676089,2535.8,2535.7,4.02574]
[1729813765012,1.58676089,2535.8,2535.7,0.81794]
[1729813765208,1.58676089,2535.8,2535.7,4.02574]
[1729813765711,1.58676089,2535.8,2535.7,0.81794]
[1729813766114,1.58676089,2535.8,2535.7,5.62978583]
[1729813766302,1.58676089,2535.8,2535.7,6.19737302]
[1729813766508,1.58676089,2535.8,2535.7,2.98957302]
[1729813766914,1.58676089,2535.8,2535.7,6.19737302]
[1729813767416,1.58676089,2535.8,2535.7,5.95059598]
[1729813768107,1.58676089,2535.8,2535.7,5.62978583]
[1729813768313,1.58676089,2535.8,2535.7,4.6426807]
[1729813768810,1.58676089,2535.8,2535.7,4.2192807]
[1729813769015,1.58676089,2535.8,2535.7,3.60234]
[1729813770306,1.58676089,2535.8,2535.7,4.21929546]
[1729813771612,1.58676089,2535.8,2535.7,4.34268649]
[1729813771814,1.58676089,2535.8,2535.7,1.13488649]
[1729813772012,1.58676089,2535.8,2535.7,4.34268649]
[1729813772216,1.58676089,2535.8,2535.7,4.21929546]
[1729813773117,1.28079321,2535.8,2535.7,4.21929546]
[1729813773323,1.58676089,2535.8,2535.7,4.21929546]
[1729813773519,1.58676089,2535.8,2535.7,3.60234]
[1729813774013,1.58676089,2535.8,2535.7,3.7257296]
[1729813774716,1.58676089,2535.8,2535.7,4.34267761]
[1729813775212,1.58676089,2535.8,2535.7,1.13487761]
[1729813775417,1.58676089,2535.8,2535.7,3.7257296]
[1729813777119,1.58676089,2535.8,2535.7,3.60234]
[1729813778130,1.58676089,2535.8,2535.7,4.54009866]
[1729813780016,1.58676089,2535.8,2535.7,1.33229866]
[1729813780525,1.58676089,2535.8,2535.7,2.19601344]
[1729813780913,1.58676089,2535.8,2535.7,2.31940203]
[1729813781624,1.58676089,2535.8,2535.7,0.71535033]
[1729813781816,1.58676089,2535.8,2535.7,0.71535055]
[1729813783238,1.58676089,2535.8,2535.7,1.99859879]
[1729813783928,1.58676089,2535.8,2535.7,1.01148569]
[1729813784121,1.58676089,2535.8,2535.7,0.71535652]
[1729813784924,1.58676089,2535.8,2535.7,0.96213463]
[1729813785226,1.58676089,2535.8,2535.7,1.38393463]
[1729813785528,1.58676089,2535.8,2535.7,1.42804514]
[1729813785729,1.58676089,2535.8,2535.7,4.26599342]
[1729813786228,1.58676089,2535.8,2535.7,5.15229342]
[1729813786423,1.58676089,2535.8,2535.7,2.31434514]
[1729813786615,1.58676089,2535.8,2535.7,5.76669093]
[1729813787020,1.58676089,2535.8,2535.7,4.53532107]
[1729813787628,1.58676089,2535.8,2535.7,5.52241716]
[1729813787933,1.58676089,2535.8,2535.7,7.37592541]
[1729813788230,0.30596768,2535.8,2535.7,8.65671862]
[1729813788427,0.30596768,2535.8,2535.7,12.10902988]
[1729813789019,0.8394,2536.2,2535.8,0.39453]
[1729813789222,1.58676089,2535.9,2535.8,0.39453]
[1729813791628,1.58676089,2535.9,2535.8,1.00633644]
[1729813792521,1.58676089,2535.9,2535.8,4.21413644]
[1729813793527,1.58676089,2535.9,2535.8,4.45849956]
[1729813793831,1.58676089,2535.9,2535.8,7.66629956]
[1729813794027,1.58676089,2535.9,2535.8,2.23759446]
[1729813794228,1.58676089,2535.9,2535.8,5.44539446]
[1729813795225,0.30596768,2535.9,2535.8,6.72618767]
[1729813795421,3.2078,2536.4,2535.8,10.27485767]
[1729813795629,0.30596768,2536.2,2536.1,1.67527321]
[1729813795831,1.58676089,2536.2,2536.1,1.67527321]
[1729813796029,1.58676089,2536.2,2536.1,0.39448]
[1729813796521,1.58676089,2536.2,2536.1,2.85678471]
[1729813796832,1.58676089,2536.2,2536.1,3.84376382]
[1729813797033,1.58676089,2536.2,2536.1,4.45796787]
[1729813798024,1.58676089,2536.2,2536.1,0.39448]
[1729813799133,1.58676089,2536.2,2536.1,0.96199271]
[1729813799928,1.58676089,2536.2,2536.1,4.4139746]
[1729813800235,1.58676089,2536.2,2536.1,3.42699561]
[1729813800529,1.58676089,2536.2,2536.1,4.41397384]
[1729813801028,1.58676089,2536.2,2536.1,0.96199271]
[1729813801927,1.58676089,2536.2,2536.1,1.99832828]
[1729813802126,1.58676089,2536.2,2536.1,3.84637052]
[1729813802928,1.58676089,2536.2,2536.1,0.76459849]
[1729813803129,1.58676089,2536.2,2536.1,0.56751502]
[1729813803434,2.41826089,2536.2,2536.1,0.96199502]
[1729813804332,2.41826089,2536.2,2536.1,2.85687688]
[1729813804833,2.41826089,2536.2,2536.1,3.05427908]
[1729813805028,2.41826089,2536.2,2536.1,4.36716909]
[1729813805434,2.41826089,2536.2,2536.1,1.52952636]
[1729813805634,2.41826089,2536.2,2536.1,0.96199502]
[1729813806031,2.41826089,2536.2,2536.1,1.28279108]
[1729813806334,2.81272089,2536.2,2536.1,0.96199502]
[1729813807634,2.81272089,2536.2,2536.1,4.36741198]
[1729813808231,2.81272089,2536.2,2536.1,3.7998336]
[1729813808928,2.41826089,2536.2,2536.1,3.18291217]
[1729813809127,2.41826089,2536.2,2536.1,0.96199502]
[1729813810036,2.81272089,2536.2,2536.1,0.96199502]
[1729813810633,2.81272089,2536.2,2536.1,1.52957339]
[1729813811134,2.81272089,2536.2,2536.1,1.08538162]
[1729813811338,2.81272089,2536.2,2536.1,0.96199502]
[1729813812638,2.81272089,2536.2,2536.1,0.56751502]
[1729813812832,2.81272089,2536.2,2536.1,0.96199502]
[1729813813438,2.81272089,2536.2,2536.1,0.56751502]
[1729813814039,2.81272089,2536.2,2536.1,2.17151732]
[1729813814235,2.81272089,2536.2,2536.1,3.40536525]
[1729813814436,2.81272089,2536.2,2536.1,3.97294117]
[1729813814831,2.81272089,2536.2,2536.1,2.73909324]
[1729813815141,2.81272089,2536.2,2536.1,1.6040023]
[1729813817441,2.81272089,2536.2,2536.1,1.92482679]
[1729813817642,2.81272089,2536.2,2536.1,2.17161486]
[1729813817940,2.41826089,2536.2,2535.9,0.3945]
[1729813818132,1.58676089,2536.0,2535.9,0.3945]
[1729813818335,0.30596768,2536.0,2535.9,0.3945]
[1729813818734,1.58676089,2536.0,2535.9,0.3945]
[1729813819432,1.58676089,2536.0,2535.9,1.67529321]
[1729813820038,1.58676089,2536.0,2535.9,5.12769469]
[1729813820246,1.58676089,2536.0,2535.9,1.67529321]
[1729813820440,0.30596768,2536.0,2535.9,1.67529321]
[1729813820641,1.28079321,2536.2,2536.0,0.98621]
[1729813820840,1.28079321,2536.2,2536.1,0.39448]
[1729813821338,1.58676089,2536.2,2536.1,0.39448]
[1729813821942,1.58676089,2536.2,2536.1,0.71525015]
[1729813822239,1.58676089,2536.2,2536.1,0.39448]
[1729813823545,1.58676089,2536.2,2536.1,1.01135029]
[1729813823845,1.58676089,2536.2,2536.1,2.85956877]
[1729813824248,1.58676089,2536.2,2536.1,1.62822058]
[1729813824550,1.58676089,2536.2,2536.1,2.61521305]
[1729813824739,1.58676089,2536.2,2536.1,1.38147247]
[1729813825138,1.58676089,2536.2,2536.1,0.98699247]
[1729813825450,1.58676089,2536.2,2536.1,1.38147247]
[1729813825949,1.98122089,2536.2,2536.1,1.38147247]
[1729813826145,1.58676089,2536.2,2536.1,0.39448]
[1729813828050,1.98122089,2536.2,2536.1,2.17154207]
[1729813828346,1.98122089,2536.2,2536.1,3.79985428]
[1729813828750,1.98122089,2536.2,2536.1,0.51786265]
[1729813829151,1.98122089,2536.2,2536.1,0.39448]
[1729813829746,1.98122089,2536.2,2536.1,1.01141958]
[1729813829945,1.98122089,2536.2,2536.1,1.99852291]
[1729813830347,1.98122089,2536.2,2536.1,1.38158333]
[1729813830547,1.98122089,2536.2,2536.1,0.98710333]
[1729813831142,1.98122089,2536.2,2536.1,1.94916736]
[1729813831351,1.98122089,2536.2,2536.1,1.55468736]
[1729813832649,1.98122089,2536.2,2536.1,1.30791169]
[1729813832848,1.98122089,2536.2,2536.1,2.59113532]
[1729813833949,1.98122089,2536.2,2536.1,0.98710333]
[1729813835155,1.98122089,2536.2,2536.1,2.91201616]
[1729813837044,1.98122089,2536.2,2536.1,2.59120001]
[1729813837750,1.98122089,2536.2,2536.1,3.12779226]
[1729813837946,1.98122089,2536.2,2536.1,3.00440001]
[1729813838142,1.98122089,2536.2,2536.1,3.12779227]
[1729813838347,1.98122089,2536.2,2536.1,2.14068894]
[1729813838659,1.98122089,2536.2,2536.1,2.33811656]
[1729813839858,1.98122089,2536.2,2536.1,1.35098014]
[1729813840061,1.98122089,2536.2,2536.1,0.61062762]
[1729813840258,1.98122089,2536.2,2536.1,0.4132]
[1729813842157,1.98122089,2536.2,2536.1,2.01730074]
[1729813842762,1.98122089,2536.2,2536.1,0.4132]
[1729813843663,1.98122089,2536.2,2536.1,0.32082014]
[1729813844364,1.98122089,2536.2,2536.1,0.19742778]
[1729813844556,1.58676089,2536.2,2535.9,0.8277]
[1729813844758,1.98125089,2536.0,2535.9,0.8277]